Cogmind - Beta 10.2 @@@ ROGUE MODE // 2021.01.03 @ 20:04:38 Player: OccultOnion Result: Destroyed by G-73 Enforcer with Heavy Laser Performance ------------- Evolutions (7) 3500 Regions Visited (9) 1800 Robots Destroyed (67) 335 Value Destroyed (2529) 2529 Prototype IDs (8) 160 Alien Tech Used (0) 0 Bonus (528) 528 TOTAL SCORE: 8852 Bonus ------- Follower Combat Kills 528 Cogmind --------- Core Integrity 0/1300 Matter 205/300 Energy 11/100 System Corruption 18% Temperature Cool (9) Movement Core (550) Ox10 Location -3/Research Parts ------- > --- POWER (2) -------- (None) > --- PROPULSION (6) --- (None) > --- UTILITY (10) ----- High-capacity Storage Unit Enhanced Optical Array Enhanced Optical Array Advanced Terrain Scan Processor Improved Component Analysis Suite > --- WEAPON (3) ------- (None) > --- INVENTORY (12) --- Improved Overload Regulator Dispersion Rifle Hypervelocity Railgun Faulty Heavy Hardcell Cannon Heavy Pick Peak State ------------ > --- POWER ------------ Micro Fission Core Particle Reactor > --- PROPULSION ------- Myomer Leg Myomer Leg Antigrav Array Xenon Bombardment Thruster Cooled Nuclear Pulse Thruster > --- UTILITY ---------- High-capacity Storage Unit Enhanced Optical Array Enhanced Optical Array Advanced Terrain Scan Processor Transport Network Coupler Shock Absorption System Shock Absorption System Improved Component Analysis Suite Advanced Component Analysis Suite System Backup Module > --- WEAPON ----------- Dispersion Rifle Improved Matter Neutralizer Plasma Sword > --- INVENTORY -------- Light Antimatter Reactor Biometal Leg Improved Overload Regulator Dispersion Rifle Hypervelocity Railgun Heavy Hardcell Cannon Heavy Pick [Rating: 124] Favorites ----------- Power Ion Engine Engine Ion Engine Power Core Light Nuclear Core Reactor Particle Reactor Propulsion Improved Airjet Treads Light Treads Leg Aluminum Leg Wheel Wheel Hover Unit Improved Airjet Flight Unit Xenon Bombardment Thruster Utility Small Storage Unit Device System Backup Module Storage Small Storage Unit Processor Enhanced Optical Array Protection Reactive Plating Weapon Flak Gun Energy Gun Arc Projector Energy Cannon EM Pulse Cannon Ballistic Gun Flak Gun Ballistic Cannon Assault Cannon Launcher Missile Launcher Impact Weapon Heavy Hammer Slashing Weapon Plasma Sword Piercing Weapon Heavy Pick Build | -11 -10 -9 -8 -7 -7 -6 -5 -4 -3 ------- Run | Scr Mat Mat Mat Fac Sto Fac Fac Fac Res Slots Evolved 14 | . . 2 2 2 . 2 2 2 2 Power 1 | . . . . . . 1 . . . Propulsion 4 | . . 1 . 1 . . . 1 1 Utility 8 | . . 1 2 1 . . 2 1 1 Weapon 1 | . . . . . . 1 . . . Parts Attached 133 | 2 3 5 24 12 24 10 6 2 45 Power 14 | . 1 . 3 1 3 1 1 . 4 Engine 5 | . 1 . 2 1 . 1 . . . Core 7 | . . . 1 . 3 . 1 . 2 Reactor 2 | . . . . . . . . . 2 Propulsion 45 | . 1 2 5 4 10 4 1 1 17 Treads 10 | . . 1 4 1 4 . . . . Leg 13 | . . . 1 . 6 1 . . 5 Wheel 2 | . 1 1 . . . . . . . Hover 13 | . . . . . . 3 1 1 8 Flight 7 | . . . . 3 . . . . 4 Utility 30 | 1 . 1 3 4 5 1 3 1 11 Device 16 | . . . 3 1 1 . 2 1 8 Storage 4 | 1 . . . . 1 1 . . 1 Processor 5 | . . 1 . 2 . . . . 2 Hackware . | . . . . . . . . . . Protection 5 | . . . . 1 3 . 1 . . Artifact . | . . . . . . . . . . Weapon 44 | 1 1 2 13 3 6 4 1 . 13 Energy Gun 13 | 1 . 1 4 . 1 1 . . 5 Energy Cannon 15 | . . 1 5 2 3 . . . 4 Ballistic Gun 4 | . 1 . . . 1 2 . . . Ballistic Cannon 1 | . . . 1 . . . . . . Launcher 3 | . . . . . 1 . . . 2 Special Weapon . | . . . . . . . . . . Impact Weapon 6 | . . . 3 1 . 1 1 . . Slashing Weapon 1 | . . . . . . . . . 1 Piercing Weapon 1 | . . . . . . . . . 1 Special Melee Weapon . | . . . . . . . . . . Unidentified Prototypes 7 | . . . 1 . . 1 . . 5 Parts Lost 101 | . . 3 15 6 17 6 . . 54 Power 14 | . . . 3 1 3 1 . . 6 Propulsion 34 | . . 1 4 1 6 1 . . 21 Utility 22 | . . . 1 2 4 2 . . 13 Weapon 31 | . . 2 7 2 4 2 . . 14 Highest Loss Streak 15 | . . 3 8 6 13 3 . . 15 Average Slot Usage (%) 90 | . 100 98 94 94 91 91 97 99 74 Engine 4 | . 14 11 6 5 3 2 5 5 . Core 2 | . . . 1 . 3 3 3 5 5 Treads 7 | . . 2 19 9 12 5 . . . Leg 5 | . 27 11 2 . 9 8 . . 3 Wheel 1 | . . 18 3 . . . . . . Hover 5 | . . . . . . 11 22 26 8 Flight 3 | . . . . 19 5 . . . 6 Device 9 | . . . 16 10 6 3 10 14 14 Storage 12 | . 28 22 18 15 11 8 11 10 4 Processor 12 | . . 10 9 15 15 13 11 10 15 Protection 4 | . . . . 1 7 12 10 10 1 Energy Gun 4 | . 14 11 6 4 2 3 . . 2 Energy Cannon 3 | . . 3 7 6 4 . . . 1 Ballistic Gun 3 | . 14 7 . . 1 6 11 10 1 Launcher 1 | . . . . . 2 2 . . . Impact Weapon 2 | . . . . 2 2 5 5 5 1 Naked Turns . | . . . . . . . . . . Heaviest Build 85 | 16 16 18 23 32 38 49 59 65 85 Greatest Support 100 | 20 20 26 60 42 72 39 50 62 100 Greatest Overweight (x) 11 | . 1 1 2 3 10 3 1 1 11 Average Overweight (x) . | . . . . . . . . . . Largest Inventory Capacity 12 | 8 8 8 8 8 8 10 10 10 12 Average Capacity 8 | 7 8 8 8 8 7 7 10 10 8 Most Carried 10 | 7 8 8 8 8 8 10 10 10 10 Average Carried 6 | 6 7 7 7 6 5 6 9 9 5 Final Capacity 12 | 8 8 8 8 8 6 10 10 10 12 Final Carried 10 | 6 8 8 4 7 6 10 10 10 6 Class Distribution -------------------- 51% | Scavenger-Mutant 36% | Mutant 3% | Commander-Mutant 3% | Scavenger-Skirmisher Dominant Class ---------------- Mutant | -10/Materials Mutant | -9/Materials Mutant | -8/Materials Scavenger-Skirmisher | -7/Factory Scavenger-Mutant | -7/Storage Scavenger-Mutant | -6/Factory Scavenger-Mutant | -5/Factory Scavenger-Mutant | -4/Factory Scavenger-Mutant | -3/Research Resources | -11 -10 -9 -8 -7 -7 -6 -5 -4 -3 ----------- Run | Scr Mat Mat Mat Fac Sto Fac Fac Fac Res Matter Collected 2017 | 240 . 82 320 80 404 268 . . 623 Remotely . | . . . . . . . . . . Salvage Created 2937 | 129 54 159 878 74 463 426 . . 754 Parts 154 | 7 5 21 41 4 27 21 . . 28 Haulers Intercepted 1 | . . . 1 . . . . . . Recyclers Shooed 3 | . . . 1 . . 2 . . . Parts Field Recycled . | . . . . . . . . . . Retrieved Matter . | . . . . . . . . . . Parts Self-Destructed . | . . . . . . . . . . Prevented . | . . . . . . . . . . Kills | -11 -10 -9 -8 -7 -7 -6 -5 -4 -3 ------- Run | Scr Mat Mat Mat Fac Sto Fac Fac Fac Res Combat Hostiles Destroyed 52 | . 3 5 17 1 8 5 . . 13 Guns 23 | . 3 4 4 . 4 4 . . 4 Cannons 19 | . . 1 13 . 2 . . . 3 AOE 4 | . . . . . 1 1 . . 2 Classes Destroyed 12 | 2 1 3 4 . 1 1 . . . Builder 4 | . . 1 . . 1 2 . . . Tunneler 3 | 2 1 . . . . . . . . Hauler 1 | . . . 1 . . . . . . Recycler 4 | 1 . . 1 . . 1 . . 1 Operator 2 | . . 1 1 . . . . . . Watcher 1 | . . . . . 1 . . . . Swarmer 16 | . 3 4 3 . 3 . . . 3 Grunt 12 | . . . 6 . 1 . . . 5 Duelist 2 | . . . 1 . . . . . 1 Sentry 15 | . . 1 6 1 4 3 . . . Hunter 1 | . . . 1 . . . . . . Programmer 6 | . . . . . . 2 . . 4 Best Kill Streak 6 | 2 4 3 4 1 6 2 . . 3 Combat Bots Only 6 | . 3 3 3 1 6 2 . . 3 Max Kills in Single Turn 2 | 1 2 1 2 1 2 1 . . 1 Gunslinging . | . . . . . . . . . . Exploded 1 | . . . . . 1 1 . . 1 Melee . | . . . . . . . . . . Uniques/NPCs Destroyed . | . . . . . . . . . . Combat | -11 -10 -9 -8 -7 -7 -6 -5 -4 -3 -------- Run | Scr Mat Mat Mat Fac Sto Fac Fac Fac Res Damage Taken 11735 | . 60 238 1816 750 2117 722 . . 6032 Core 2111 | . 22 35 227 192 243 85 . . 1307 Absorbed by Shields 223 | . . . . . 124 99 . . . Core Remaining (%) 83 | 100 91 91 58 . 37 90 100 100 . Volleys Fired 291 | 20 3 18 83 3 43 38 . . 83 Largest 2 | 2 2 2 2 2 2 2 . . 2 Hottest 201 | 60 60 110 129 126 126 83 . . 201 Shots Fired 465 | 33 6 35 144 6 62 63 . . 116 Gun 288 | 33 6 32 57 3 31 55 . . 71 Cannon 142 | . . 3 87 3 20 . . . 29 Launcher 35 | . . . . . 11 8 . . 16 Special . | . . . . . . . . . . Kinetic 150 | 20 3 14 28 . 18 41 . . 26 Thermal 169 | . . 11 113 3 . . . . 42 Explosive 29 | . . . . . 11 8 . . 10 Electromagnetic 117 | 13 3 10 3 3 33 14 . . 38 Robot Hit Streak 15 | 9 14 4 15 10 11 8 . . 13 Robot Miss Streak 9 | 1 . 3 3 1 7 9 . . 6 Penetration Max . | . . . . . . . . . . Secondary Targets 2 | . . 1 . . . . . . 1 Max Gunslinging Chain 1 | . . 1 . . . . . . 1 Shots Hit Robots 319 | 23 5 18 103 7 49 42 . . 72 Core Hits 173 | 5 4 8 32 2 31 40 . . 51 Critical Hits 4 | . . . 3 . . . . . 1 Critical Kills 1 | . . . 1 . . . . . . Critical Parts Destroyed 3 | . . . 2 . . . . . 1 Melee Attacks 82 | . . . 7 2 1 12 9 6 45 Impact 52 | . . . 7 2 1 12 9 6 15 Slashing 29 | . . . . . . . . . 29 Piercing 1 | . . . . . . . . . 1 Sneak Attacks 3 | . . . . . . 3 . . . Combat Hostiles 1 | . . . . . . 1 . . . Follow-up Attacks . | . . . . . . . . . . Damage Inflicted 7053 | 228 294 203 1880 148 993 977 . . 2330 Guns 3071 | 228 52 167 797 52 331 624 . . 820 Cannons 2132 | . . 36 1083 63 278 . . . 672 Explosions 1547 | . 242 . . . 383 152 . . 770 Melee 302 | . . . . 33 . 201 . . 68 Ramming 1 | . . . . . 1 . . . . Kinetic 1818 | 124 19 35 360 . 246 614 . . 420 Thermal 2856 | . 80 98 1469 52 85 . . . 1072 Explosive 894 | . 162 . . . 298 152 . . 282 Electromagnetic 1182 | 104 33 70 51 63 363 10 . . 488 Impact 302 | . . . . 33 . 201 . . 68 Slashing . | . . . . . . . . . . Piercing . | . . . . . . . . . . Highest Corruption 18 | . . . . 2 2 6 . . 18 Average Corruption 3 | . . . . 2 2 4 . . 5 Corruption Purged 4 | . . . . . . . . . 4 Effects 57 | . . . . 1 9 14 . . 33 Message Errors 16 | . . . . 1 5 2 . . 8 Matter Fused 3 | . . . . . . 1 . . 2 Heat Flow Errors 8 | . . . . . 2 1 . . 5 Energy Discharges 6 | . . . . . . 4 . . 2 Parts Rejected 1 | . . . . . . . . . 1 Data Loss (minor) 7 | . . . . . 1 2 . . 4 Data Loss (major) 1 | . . . . . . . . . 1 Misfires 2 | . . . . . . 1 . . 1 Targeting Errors 12 | . . . . . 1 3 . . 8 Weapon Failures 1 | . . . . . . . . . 1 Overload Shots . | . . . . . . . . . . Overflow Damage 378 | . 97 . 30 . 38 96 . . 117 Projectiles 84 | . . . 30 . 11 . . . 43 Explosions 189 | . 97 . . . 27 . . . 65 Melee 105 | . . . . . . 96 . . 9 Knockbacks 6 | . . . 3 . . 3 . . . Impact 3 | . . . . . . 3 . . . Kinetic 3 | . . . 3 . . . . . . Secondary . | . . . . . . . . . . Self-Inflicted Damage 174 | . 26 . . . . 73 . . 75 Shots 7 | . 2 . . . . 2 . . 3 Rammed 1 | . . . . . 1 . . . . Targets Rammed 1 | . . . . . 1 . . . . Kicked . | . . . . . . . . . . Crushed . | . . . . . . . . . . Highest Temperature 707 | 40 52 101 395 126 233 97 . . 707 Average Temperature 118 | 22 25 29 135 52 90 20 . . 188 Received Heat Transfer 2243 | . . 27 702 222 568 106 . . 618 Effects 18 | . . . 4 . . . . . 14 Shutdowns 5 | . . . 2 . . . . . 3 Energy Bleed 6 | . . . 2 . . . . . 4 Interference 4 | . . . . . . . . . 4 Short Circuit 1 | . . . . . . . . . 1 Damage (minor) 2 | . . . . . . . . . 2 Siege Activations . | . . . . . . . . . . Robots Corrupted 4 | . . . . 1 1 . . . 2 Combat Hostiles 4 | . . . . 1 1 . . . 2 Parts Fried 16 | 1 . . 1 1 3 5 . . 5 Impact Corruptions 4 | . . . . . . 3 . . 1 Robots Melted 1 | . . . . . . . . . 1 Combat Hostiles 1 | . . . . . . . . . 1 Parts Melted 7 | . . . 6 . . . . . 1 Heat Transferred 4616 | . 100 259 3034 111 50 . . . 1062 Parts Sabotaged . | . . . . . . . . . . Parts Stolen . | . . . . . . . . . . Parts Stripped . | . . . . . . . . . . Power Chain Reactions 3 | . 1 . . . 1 . . . 1 Missiles Intercepted . | . . . . . . . . . . Alert | -11 -10 -9 -8 -7 -7 -6 -5 -4 -3 ------- Run | Scr Mat Mat Mat Fac Sto Fac Fac Fac Res Peak Influence 506 | 15 119 135 391 150 506 258 143 94 217 Initial 143 | . 9 50 56 133 68 143 67 70 48 Average 151 | 7 60 70 207 128 225 134 108 78 128 Maximum Alert Level 2 | . . . 1 . 2 1 . . 1 Low Security (%) 72 | 100 100 100 50 100 35 85 100 100 81 Level 1 26 | . . . 49 . 58 14 . . 18 Level 2 1 | . . . . . 6 . . . . Level 3 . | . . . . . . . . . . Level 4 . | . . . . . . . . . . Level 5 . | . . . . . . . . . . High Security . | . . . . . . . . . . Max Security . | . . . . . . . . . . Squads Dispatched 13 | . . 1 2 . 4 2 . . 4 Investigation 1 | . . . . . 1 . . . . Extermination 5 | . . . . . 1 2 . . 2 Reinforcement 7 | . . 1 2 . 2 . . . 2 Assault . | . . . . . . . . . . Garrison . | . . . . . . . . . . Intercept . | . . . . . . . . . . Construction Impeded 2 | . . . . . 1 . . . 1 Haulers Reinforced . | . . . . . . . . . . Stealth | -11 -10 -9 -8 -7 -7 -6 -5 -4 -3 --------- Run | Scr Mat Mat Mat Fac Sto Fac Fac Fac Res Distress Signals 3 | . . . . . 1 . . . 2 Communications Jammed . | . . . . . . . . . . Distress Signals . | . . . . . . . . . . Times Spotted 129 | . 5 10 31 3 30 9 2 . 39 Peak Tracking Total 9 | . 3 4 5 2 6 3 1 . 9 Tactical Retreats 13 | . . 1 2 . 1 . . . 9 Traps | -11 -10 -9 -8 -7 -7 -6 -5 -4 -3 ------- Run | Scr Mat Mat Mat Fac Sto Fac Fac Fac Res Traps Triggered 7 | . 2 . 1 1 2 . . . 1 Indirectly . | . . . . . . . . . . Trap Hack Attempts . | . . . . . . . . . . Triggered . | . . . . . . . . . . Disarmed . | . . . . . . . . . . Reprogrammed . | . . . . . . . . . . Reused . | . . . . . . . . . . Traps Extracted . | . . . . . . . . . . Installed . | . . . . . . . . . . Triggered 1 | . . . . 1 . . . . . Machines | -11 -10 -9 -8 -7 -7 -6 -5 -4 -3 ---------- Run | Scr Mat Mat Mat Fac Sto Fac Fac Fac Res Machines Disabled 5 | . 1 . . . 3 1 . . . Max in Single Turn 1 | . 1 . . . 1 1 . . . Garrison Access 2 | . . . 1 . . . . 1 . Machines Sabotaged . | . . . . . . . . . . Garrisons Compromised . | . . . . . . . . . . Overloaded Fab Kills . | . . . . . . . . . . Fab Network Shutdowns . | . . . . . . . . . . Hacking | -11 -10 -9 -8 -7 -7 -6 -5 -4 -3 --------- Run | Scr Mat Mat Mat Fac Sto Fac Fac Fac Res Machines Accessed 32 | . 1 3 8 1 8 2 3 2 4 Terminals 27 | . 1 3 6 . 7 2 3 1 4 Fabricators . | . . . . . . . . . . Repair Stations 1 | . . . . . 1 . . . . Recycling Units . | . . . . . . . . . . Scanalyzers 2 | . . . 1 1 . . . . . Garrison Access 2 | . . . 1 . . . . 1 . Total Hacks 96 | . 3 10 27 8 24 4 10 4 6 Successful 52 | . 2 4 15 8 13 . 6 2 2 Failed 44 | . 1 6 12 . 11 4 4 2 4 Catastrophic 9 | . . 2 1 . 2 2 . . 2 Database Lockouts . | . . . . . . . . . . Manual 63 | . 1 7 21 . 18 4 7 2 3 Terminals 81 | . 3 10 24 . 22 4 10 2 6 Fabricators . | . . . . . . . . . . Repair Stations 2 | . . . . . 2 . . . . Recycling Units . | . . . . . . . . . . Scanalyzers 10 | . . . 2 8 . . . . . Garrison Access 3 | . . . 1 . . . . 2 . Terminal Hacks 18 | . 1 2 6 . 6 . 1 . 2 Part Schematic 2 | . . . . . 2 . . . . Open Door 1 | . . . . . 1 . . . . Alert Level 4 | . . . 2 . 1 . . . 1 Unreport Threat 1 | . . 1 . . . . . . . Locate Traps 1 | . . . . . 1 . . . . Recall Reinforcements 1 | . . . 1 . . . . . . Zone Layout 8 | . 1 1 3 . 1 . 1 . 1 Fabricator Hacks . | . . . . . . . . . . Repair Station Hacks 2 | . . . . . 2 . . . . Scan Component 1 | . . . . . 1 . . . . Repair 1 | . . . . . 1 . . . . Recycling Unit Hacks . | . . . . . . . . . . Scanalyzer 10 | . . . 2 8 . . . . . Insert Component 4 | . . . 1 3 . . . . . Analyze 6 | . . . 1 5 . . . . . Garrison Access Hacks 2 | . . . 1 . . . . 1 . Seal Access 2 | . . . 1 . . . . 1 . Unauthorized Hacks 20 | . 1 2 6 . 5 . 5 1 . Terminals 20 | . 1 2 6 . 5 . 5 1 . Assimilate 3 | . . . 1 . . . 2 . . Botnet 17 | . 1 2 5 . 5 . 3 1 . Fabricators . | . . . . . . . . . . Repair Stations . | . . . . . . . . . . Recycling Units . | . . . . . . . . . . Scanalyzers . | . . . . . . . . . . Garrison Access . | . . . . . . . . . . Data Cores Recovered 1 | . . 1 . . . . . . . Used 1 | . . 1 . . . . . . . Hacking Detections 28 | . 1 3 6 1 7 2 3 1 4 Full Trace Events 1 | . . . . . 1 . . . . Feedback Events . | . . . . . . . . . . Feedback Blocked . | . . . . . . . . . . Robot Schematics Acquired . | . . . . . . . . . . Robots Built . | . . . . . . . . . . Matter . | . . . . . . . . . . Time . | . . . . . . . . . . Total Robot Build Rating . | . . . . . . . . . . Part Schematics Acquired 6 | . . . 1 3 2 . . . . Parts Built . | . . . . . . . . . . Matter . | . . . . . . . . . . Time . | . . . . . . . . . . Total Part Build Rating . | . . . . . . . . . . Parts Repaired 1 | . . . . . 1 . . . . Time 13 | . . . . . 13 . . . . Parts Recycled . | . . . . . . . . . . Recycled Matter . | . . . . . . . . . . Retrieved Matter . | . . . . . . . . . . Retrieved Components . | . . . . . . . . . . Parts Scanalyzed 4 | . . . 1 3 . . . . . Part Schematics Acquired 4 | . . . 1 3 . . . . . Parts Damaged . | . . . . . . . . . . Bothacking | -11 -10 -9 -8 -7 -7 -6 -5 -4 -3 ------------ Run | Scr Mat Mat Mat Fac Sto Fac Fac Fac Res Used RIF Installer . | . . . . . . . . . . Robots Hacked . | . . . . . . . . . . Non-combat . | . . . . . . . . . . Combat . | . . . . . . . . . . Robot Hacks Applied . | . . . . . . . . . . Relay Couplers Released 2 | . . . 2 . . . . . . Machine Destruction 2 | . . . 2 . . . . . . Robots Rewired 1 | . . . . . . . . . 1 Allies Hacked . | . . . . . . . . . . Hacks Repelled . | . . . . . . . . . . Allies | -11 -10 -9 -8 -7 -7 -6 -5 -4 -3 -------- Run | Scr Mat Mat Mat Fac Sto Fac Fac Fac Res Total Allies 18 | . . . . . 15 . 2 . 1 Largest Group 10 | . . . . . 10 2 2 1 1 Highest-Rated Group 174 | . . . . . 174 126 36 10 10 Highest-Rated Ally 99 | . . . . . 99 94 26 10 10 Total Orders 1 | . . . . . . . . 1 . EXPLORE 1 | . . . . . . . . 1 . Ally Attacks 76 | . . . . . 72 4 . . . Total Damage 1743 | . . . . . 1674 69 . . . Kills 18 | . . . . . 18 . . . . Allies Corrupted . | . . . . . . . . . . Allies Melted . | . . . . . . . . . . Intel | -11 -10 -9 -8 -7 -7 -6 -5 -4 -3 ------- Run | Scr Mat Mat Mat Fac Sto Fac Fac Fac Res Robot Analysis Total . | . . . . . . . . . . Derelict Logs Recovered . | . . . . . . . . . . Drone Launches 1 | . . . . . . . . 1 . Drone Recoveries 1 | . . . . . . . . 1 . Exploration | -11 -10 -9 -8 -7 -7 -6 -5 -4 -3 ------------- Run | Scr Mat Mat Mat Fac Sto Fac Fac Fac Res Turns Passed 4866 | 122 153 234 1010 357 841 761 244 211 933 Spaces Moved 3253 | 56 105 169 532 198 430 443 268 220 832 Core 8 | . . . . . 4 . . . 4 Treads 548 | . . . 271 85 192 . . . . Legs 721 | 56 98 . . . 234 188 . . 145 Wheels 437 | . 7 169 261 . . . . . . Hover 1061 | . . . . . . 255 268 220 318 Flight 478 | . . . . 113 . . . . 365 Fastest Speed 31 | 120 100 90 90 134 120 52 40 34 31 Average Speed 103 | 120 118 90 127 141 143 126 73 86 58 Slowest Speed 600 | 120 150 90 180 300 550 260 100 98 600 Overloaded Moves . | . . . . . . . . . . Propulsion Burnouts . | . . . . . . . . . . Robots Hopped 3 | . . . . . . . . . 3 Cave-ins Triggered . | . . . . . . . . . . Exploration Rate (%) 25 | 4 30 22 57 6 62 17 11 13 30 Regions Visited 9 Branch Regions 1 Pre-discovered Areas . | . . . . . . . . . . Known Exits Taken . | . . . . . . . . . . Unknown Exits Taken 9 | 1 1 1 1 1 1 1 1 1 . Scrap Searched . | . . . . . . . . . . Spaces Dug 75 | . . . 5 . 1 15 9 6 39 Terrain Destroyed 237 | . 28 . 12 . 57 38 9 6 87 Melee 65 | . . . 5 . 1 7 9 6 37 Projectile 12 | . . . 7 . . . . . 5 AOE 160 | . 28 . . . 56 31 . . 45 Terrain Rammed . | . . . . . . . . . . Walls Destroyed . | . . . . . . . . . . Machines Disabled . | . . . . . . . . . . Actions | -11 -10 -9 -8 -7 -7 -6 -5 -4 -3 --------- Run | Scr Mat Mat Mat Fac Sto Fac Fac Fac Res Total 4184 | 83 127 220 708 265 592 555 304 232 1098 Wait 215 | . 12 18 37 28 51 21 7 1 40 Move 3238 | 55 104 168 531 197 429 442 267 219 826 Hop 3 | . . . . . . . . . 3 Pick Up 153 | 3 5 8 19 19 25 16 10 3 45 Fast Attach . | . . . . . . . . . . Attach 114 | 2 3 5 16 11 22 5 5 2 43 Detach 2 | 1 . . . . 1 . . . . Swap 19 | . . . 8 1 2 5 1 . 2 Drop 43 | 2 . 3 7 4 7 7 5 1 7 Fire 291 | 20 3 18 83 3 43 38 . . 83 Melee 81 | . . . 7 2 1 12 9 6 44 Ram . | . . . . . . . . . . Kick 1 | . . . . . 1 . . . . Crush . | . . . . . . . . . . Escape Stasis 10 | . . . . . 10 . . . . Rewire 14 | . . . . . . 9 . . 5 Trap . | . . . . . . . . . . Miscellaneous . | . . . . . . . . . . Route ------- -11/Scrapyard -10/Materials (discovered 2 exits: *Mat / [*Min]) -9/Materials (discovered 2 exits: *Mat / [*Min]) -8/Materials -7/Factory (discovered 3 exits: *Fac / *Sto / [*Low]) -7/Storage -6/Factory -5/Factory -4/Factory -3/Research History --------- Turn | Location | Event 10 | -11/Scrapyard | Discovered new exit (range 3) 123 | -11/Scrapyard | Entered Materials 191 | -10/Materials | Discovered new exit (range 15) 250 | -10/Materials | Discovered new exit (range 14) 276 | -10/Materials | Entered another Materials area 276 | -9/Materials | Evolved 2 slots: Propulsion x1, Utility x1 308 | -9/Materials | Build established: Mutant 356 | -9/Materials | Discovered new exit (range 7) 477 | -9/Materials | Lost 3 parts (1n2w) 478 | -9/Materials | Discovered new exit (range 6) 510 | -9/Materials | Entered another Materials area 510 | -8/Materials | Evolved 2 slots: Utility x2 1101 | -8/Materials | Lost 3 parts (1p2w) 1487 | -8/Materials | Lost 8 parts (1p3n4w) 1504 | -8/Materials | Discovered new exit (range 11) 1520 | -8/Materials | Entered Factory 1520 | -7/Factory | Evolved 2 slots: Propulsion x1, Utility x1 1666 | -7/Factory | Discovered new exit (range 5) 1706 | -7/Factory | Discovered new exit (range 12) 1785 | -7/Factory | Lost 6 parts (1p1n2u2w) 1844 | -7/Factory | Discovered new exit (range 9) 1877 | -7/Factory | Entered Storage 1886 | -7/Storage | Assisted by bots powering up and referring to "LRC-V3" 1936 | -7/Storage | Repaired Sml. Storage Unit 2184 | -7/Storage | Lost 4 parts (2n1u1w) 2387 | -7/Storage | Core integrity fell below 50% 2427 | -7/Storage | Build established: Scavenger-Mutant 2428 | -7/Storage | Lost 13 parts (3p4n3u3w) 2432 | -7/Storage | Met 01-MTF 2650 | -7/Storage | Discovered new exit (range 21) 2718 | -7/Storage | Entered Factory 2718 | -6/Factory | Accompanied by 2 allies (01-MTF) 2718 | -6/Factory | Evolved 2 slots: Power x1, Weapon x1 2723 | -6/Factory | 01-MTF left 3143 | -6/Factory | Lost 3 parts (1p1u1w) 3361 | -6/Factory | Spotted B-75 Beast 3447 | -6/Factory | Discovered new exit (range 15) 3479 | -6/Factory | Entered another Factory area 3479 | -5/Factory | Evolved 2 slots: Utility x2 3487 | -5/Factory | Lost 3 parts (1n1u1w) 3701 | -5/Factory | Discovered new exit (range 21) 3723 | -5/Factory | Entered another Factory area 3723 | -4/Factory | Accompanied by 1 ally 3723 | -4/Factory | Evolved 2 slots: Propulsion x1, Utility x1 3928 | -4/Factory | Discovered new exit (range 3) 3934 | -4/Factory | Entered Research 3934 | -3/Research | Accompanied by 1 ally 3934 | -3/Research | Evolved 2 slots: Propulsion x1, Utility x1 4154 | -3/Research | Lost 12 parts (1p6n2u3w) 4284 | -3/Research | Lost 15 parts (1p6n3u5w) 4343 | -3/Research | Lost 4 parts (2n1u1w) 4407 | -3/Research | Spotted B-86 Titan 4477 | -3/Research | Found Gamma Bomb Array 4542 | -3/Research | Lost 5 parts (1p1n1u2w) 4779 | -3/Research | System corruption reached 10% 4839 | -3/Research | Lost 9 parts (2p2n3u2w) 4849 | -3/Research | Core integrity fell below 50% 4863 | -3/Research | Core integrity fell below 20% 4867 | -3/Research | Destroyed by G-73 Enforcer with Heavy Laser Last Messages --------------- 04804_ R-10 Processor destroyed. 04808_ Imp. Matter Neutralizer destroyed. 04824_ Connecting with Terminal... 04834_ P-80 Master resets P-80 Master, system corruption cleaned. 04837_ Triggered Segregator Trap. 04837_ Arcs of energy rise from the floor. 04837_ Adv. Heat Sink blown off. 04837_ Xenon Bombardment Thruster blown off. 04839_ Lgt. Antimatter Reactor destroyed. 04839_ Acquired Xenon Bombardment Thruster. 04841_ Myomer Leg destroyed. 04844_ Broken Transport Network Coupler destroyed. 04845_ System corrupted: Heat flow error (+234). 04845_ Cld. Nuclear Pulse Thruster destroyed. 04845_ P-80 Master resets P-80 Master, system corruption cleaned. 04846_ Plasma Sword destroyed. 04848_ Xenon Bombardment Thruster destroyed. 04850_ Biometal Leg destroyed. 04854_ Adv. Component Analysis Suite destroyed. 04860_ N Q3R3MLUQYOIF%| YXD7EHIC BL